fUSD/lending_fUSD_20260408
["ID","MTS","AMOUNT","RATE_DAILY","PERIOD"]
[420026979,1775623851078,-151.0,0.000245,2]
[420026980,1775623851088,-182.805074,0.000245,2]
[420026981,1775623851097,-151.0,0.000245,2]
[420026982,1775623851107,-151.0,0.000245,2]
[420026983,1775623851116,-151.0,0.000245,2]
[420026984,1775623851126,-319.450739,0.000245,2]
[420026985,1775623851135,-319.450739,0.000245,2]
[420026986,1775623851145,-319.450739,0.000245,2]
[420026987,1775623851154,-319.450739,0.000245,2]
[420026988,1775623851164,-151.0,0.000245,2]
[420026989,1775623851173,-152.530541,0.000245,2]
[420026990,1775623851183,-151.0,0.000245,2]
[420026991,1775623851192,-1997.607165,0.000245,2]
[420026992,1775623851201,-1997.607165,0.000245,2]
[420026993,1775623851211,-1997.607165,0.000245,2]
[420026994,1775623851221,-1997.607165,0.000245,2]
[420026995,1775623851230,-175.533937,0.000245,2]
[420026996,1775623851240,-175.533937,0.000245,2]
[420026997,1775623851250,-151.0,0.000245,2]
[420026998,1775623851260,-151.0,0.000245,2]
[420026999,1775623851269,-151.0,0.000245,2]
[420027000,1775623851279,-175.533937,0.000245,2]
[420027001,1775623851288,-151.0,0.000245,2]
[420027002,1775623851297,-175.533937,0.000245,2]
[420027003,1775623851307,-151.0,0.000245,2]
[420027004,1775623851316,-152.135177,0.000245,2]
[420027005,1775623851325,-287.682203,0.000245,2]
[420027006,1775623851334,-151.0,0.000245,2]
[420027007,1775623851343,-283.79009,0.000245,2]
[420027008,1775623851352,-151.0,0.000245,2]
[420027009,1775623851362,-151.0,0.000245,2]
[420027010,1775623851372,-151.0,0.000245,2]
[420027011,1775623851382,-151.0,0.000245,2]
[420027012,1775623851391,-151.0,0.000245,2]
[420027013,1775623851401,-151.0,0.000245,2]
[420027014,1775623851410,-152.77125,0.000245,2]
[420027015,1775623851421,-151.0,0.000245,2]
[420027016,1775623851431,-1783.253125,0.000245,2]
[420027017,1775623851441,-1783.253125,0.000245,2]
[420027018,1775623851451,-1783.253125,0.000245,2]
[420027019,1775623851461,-1783.253125,0.000245,2]
[420027020,1775623851471,-151.0,0.000245,2]
[420027021,1775623851481,-151.0,0.000245,2]
[420027022,1775623851491,-151.0,0.000245,2]
[420027023,1775623851501,-323.380748,0.000245,2]
[420027024,1775623851510,-151.0,0.000245,2]
[420027025,1775623851520,-323.380748,0.000245,2]
[420027026,1775623851529,-323.380748,0.000245,2]
[420027027,1775623851539,-257.70676,0.000245,2]
[420027028,1775623851548,-323.380748,0.000245,2]
[420027029,1775623851557,-151.0,0.000245,2]
[420027030,1775623851567,-257.70676,0.000245,2]
[420027031,1775623851577,-151.0,0.000245,2]
[420027032,1775623851586,-257.70676,0.000245,2]
[420027033,1775623851595,-151.0,0.000245,2]
[420027034,1775623851605,-151.0,0.000245,2]
[420027035,1775623851614,-257.70676,0.000245,2]
[420027036,1775623851624,-151.0,0.000245,2]
[420027037,1775623851634,-151.0,0.000245,2]
[420027038,1775623851644,-151.0,0.000245,2]
[420027039,1775623851654,-151.0,0.000245,2]
[420027040,1775623851665,-151.0,0.000245,2]
[420027041,1775623851675,-157.854968,0.000245,2]
[420027042,1775623851684,-194.131314,0.000245,2]
[420027043,1775623851694,-194.131314,0.000245,2]
[420027044,1775623851703,-194.131314,0.000245,2]
[420027045,1775623851712,-151.0,0.000245,2]
[420027046,1775623851722,-194.131314,0.000245,2]
[420027047,1775623851732,-151.0,0.000245,2]
[420027048,1775623851741,-158.727889,0.000245,2]
[420027049,1775623851757,-333.804281,0.000245,2]
[420027050,1775623851767,-333.804281,0.000245,2]
[420027051,1775623851777,-151.0,0.000245,2]
[420027052,1775623851787,-333.804281,0.000245,2]
[420027053,1775623851797,-151.0,0.000245,2]
[420027054,1775623851808,-333.804281,0.000245,2]
[420027055,1775623851818,-151.0,0.000245,2]
[420027056,1775623851828,-151.0,0.000245,2]
[420027057,1775623851838,-151.0,0.000245,2]
[420027058,1775623851848,-153.885304,0.000245,2]
[420027059,1775623851858,-151.0,0.000245,2]
[420027060,1775623851868,-151.0,0.000245,2]
[420027061,1775623851878,-228.680597,0.000245,2]
[420027062,1775623851887,-151.0,0.000245,2]
[420027063,1775623851897,-151.0,0.000245,2]
[420027064,1775623851907,-275.633001,0.000245,2]
[420027065,1775623851916,-187.069104,0.000245,2]
[420027066,1775623851926,-151.0,0.000245,2]
[420027067,1775623851935,-151.0,0.000245,2]
[420027068,1775623851945,-151.0,0.000245,2]
[420027069,1775623851955,-79364.77,0.000246,7]
[420027070,1775623851965,-152.0,0.00024625,6]
[420027071,1775623851975,-402.56716046,0.00024639,2]
[420027072,1775623851985,-200.0,0.00024658,2]
[420027073,1775623851995,-349.0,0.00024658,2]
[420027074,1775623852006,-200.0,0.00024658,2]
[420027075,1775623852015,-327.0,0.00024658,2]
[420027076,1775623852025,-2000.0,0.00024658,7]
[420027077,1775623852034,-151.0,0.00024658,2]
[420027078,1775623852043,-1000.0,0.00024658,2]
[420027079,1775623852052,-151.0,0.00024658,2]
[420027080,1775623852061,-151.0,0.00024658,2]
[420027081,1775623852070,-150.0,0.00024658,2]
[420027082,1775623852080,-153.18,0.00024658,30]
[420027083,1775623852090,-177.67,0.00024658,2]
[420027084,1775623852099,-1600.0,0.00024802,120]
[420027085,1775623852109,-477.15533545,0.00024806,2]
[420027086,1775623852119,-825.0,0.00024828,60]
[420027087,1775623852128,-2002.28581045,0.0002488,2]
[420027088,1775623852138,-451.88193642,0.0002488,2]
[420027089,1775623852147,-2000.0,0.0002488,2]
[420027090,1775623852156,-2000.0,0.0002488,2]
[420027091,1775623852165,-500.0,0.000249,2]
[420027092,1775623852175,-150.0,0.000249,2]
[420027093,1775623852183,-151.0,0.000249,2]
[420027094,1775623852193,-151.0,0.000249,2]
[420027095,1775623852202,-151.0,0.000249,2]
[420027096,1775623852212,-151.0,0.000249,2]
[420027097,1775623852221,-152.715689,0.000249,2]
[420027098,1775623852231,-151.0,0.000249,2]
[420027099,1775623852240,-151.0,0.000249,2]
[420027100,1775623852250,-151.0,0.000249,2]
[420027101,1775623852265,-151.0,0.000249,2]
[420027102,1775623852274,-151.0,0.000249,2]
[420027103,1775623852284,-151.0,0.000249,2]
[420027104,1775623852294,-151.0,0.000249,2]
[420027105,1775623852304,-680.691086,0.000249,2]
[420027106,1775623852314,-680.691086,0.000249,2]
[420027107,1775623852323,-151.0,0.000249,2]
[420027108,1775623852333,-680.691086,0.000249,2]
[420027109,1775623852343,-1436.269995,0.000249,2]
[420027110,1775623852352,-151.0,0.000249,2]
[420027111,1775623852362,-680.691086,0.000249,2]
[420027112,1775623852371,-1436.269995,0.000249,2]
[420027113,1775623852381,-1436.269995,0.000249,2]
[420027114,1775623852391,-1436.269995,0.000249,2]
[420027115,1775623852400,-153.180645,0.000249,2]
[420027116,1775623852410,-153.180645,0.000249,2]
[420027117,1775623852419,-153.180645,0.000249,2]
[420027118,1775623852428,-281.843706,0.000249,2]
[420027119,1775623852438,-153.180645,0.000249,2]
[420027120,1775623852448,-152.228117,0.000249,2]
[420027121,1775623852458,-153.242235,0.000249,2]
[420027122,1775623852468,-153.242235,0.000249,2]
[420027123,1775623852478,-153.242235,0.000249,2]
[420027124,1775623852488,-153.242235,0.000249,2]
[420027125,1775623852498,-200.0,0.000249,9]
[420027126,1775623852508,-522.53134327,0.0002499,2]
[420027127,1775623852518,-1000000.0,0.00025,2]
[420027128,1775623852528,-160.0,0.00025,7]
[420027129,1775623852538,-151.0,0.00025,2]
[420027130,1775623852547,-151.0,0.00025,2]
[420027131,1775623852556,-151.0,0.00025,2]
[420027132,1775623852565,-701.0,0.00025,2]
[420027133,1775623852575,-162.0,0.00025,2]
[420027134,1775623852584,-1220.0,0.00025,2]
[420027135,1775623852594,-151.0,0.00025,2]
[420027136,1775623852603,-151.0,0.00025,2]
[420027137,1775623852613,-5456.0,0.00025,2]
[420027138,1775623852622,-271.049962,0.00025,2]
[420027139,1775623852632,-151.0,0.00025,2]
[420027140,1775623852642,-151.0,0.00025,2]
[420027141,1775623852651,-206.613888,0.00025,2]
[420027142,1775623852661,-319.450739,0.00025,2]
[420027143,1775623852670,-319.450739,0.00025,2]
[420027144,1775623852679,-319.450739,0.00025,2]
[420027145,1775623852689,-319.450739,0.00025,2]
[420027146,1775623852698,-3464.0,0.00025,2]
[420027147,1775623852708,-152.273425,0.00025,2]
[420027148,1775623852718,-151.0,0.00025,2]
[420027149,1775623852727,-1355.0,0.00025,2]
[420027150,1775623852737,-1997.607165,0.00025,2]
[420027151,1775623852747,-1997.607165,0.00025,2]
[420027152,1775623852757,-1997.607165,0.00025,2]
[420027153,1775623852769,-1997.607165,0.00025,2]
[420027154,1775623852779,-175.533937,0.00025,2]
[420027155,1775623852788,-175.533937,0.00025,2]
[420027156,1775623852799,-189.530249,0.00025,2]
[420027157,1775623852808,-151.0,0.00025,2]
[420027158,1775623852818,-175.533937,0.00025,2]
[420027159,1775623852828,-151.0,0.00025,2]
[420027160,1775623852838,-151.0,0.00025,2]
[420027161,1775623852848,-175.533937,0.00025,2]
[420027162,1775623852857,-151.0,0.00025,2]
[420027163,1775623852867,-151.0,0.00025,2]
[420027164,1775623852877,-151.0,0.00025,2]
[420027165,1775623852887,-151.0,0.00025,2]
[420027166,1775623852897,-151.0,0.00025,2]
[420027167,1775623852906,-151.0,0.00025,2]
[420027168,1775623852916,-977.0,0.00025,2]
[420027169,1775623852926,-259.145618,0.00025,2]
[420027170,1775623852935,-213.10577,0.00025,2]
[420027171,1775623852945,-151.0,0.00025,2]
[420027172,1775623852956,-300.0,0.00025,3]
[420027173,1775623852966,-300.0,0.00025,3]
[420027174,1775623852976,-300.0,0.00025,3]
[420027175,1775623852986,-300.0,0.00025,3]
[420027176,1775623852996,-300.0,0.00025,3]
[420027177,1775623853006,-1783.253125,0.00025,2]
[420027178,1775623853015,-1783.253125,0.00025,2]
[420027179,1775623853024,-1783.253125,0.00025,2]
[420027180,1775623853034,-1783.253125,0.00025,2]
[420027181,1775623853044,-151.0,0.00025,2]
[420027182,1775623853053,-151.0,0.00025,2]
[420027183,1775623853062,-151.0,0.00025,2]
[420027184,1775623853072,-323.380748,0.00025,2]
[420027185,1775623853081,-155.140856,0.00025,2]
[420027186,1775623853091,-323.380748,0.00025,2]
[420027187,1775623853100,-323.380748,0.00025,2]
[420027188,1775623853110,-257.70676,0.00025,2]
[420027189,1775623853119,-323.380748,0.00025,2]
[420027190,1775623853130,-151.0,0.00025,2]
[420027191,1775623853140,-257.70676,0.00025,2]
[420027192,1775623853150,-151.0,0.00025,2]
[420027193,1775623853160,-257.70676,0.00025,2]
[420027194,1775623853170,-151.0,0.00025,2]
[420027195,1775623853180,-151.0,0.00025,2]
[420027196,1775623853190,-257.70676,0.00025,2]
[420027197,1775623853199,-203.885856,0.00025,2]
[420027198,1775623853209,-151.0,0.00025,2]
[420027199,1775623853219,-151.0,0.00025,2]
[420027200,1775623853228,-1364.0,0.00025,2]
[420027201,1775623853238,-1000000.0,0.000251,2]
[420027202,1775623853247,-151.82556,0.000251,2]
[420027203,1775623853257,-151.0,0.000251,2]
[420027204,1775623853267,-151.0,0.000251,2]
[420027205,1775623853276,-151.0,0.000251,2]
[420027206,1775623853286,-151.0,0.000251,2]
[420027207,1775623853295,-240.819994,0.000251,2]
[420027208,1775623853306,-151.0,0.000251,2]
[420027209,1775623853316,-151.0,0.000251,2]
[420027210,1775623853325,-196.926753,0.000251,2]
[420027211,1775623853335,-151.0,0.000251,2]
[420027212,1775623853345,-151.0,0.000251,2]
[420027213,1775623853355,-151.0,0.000251,2]
[420027214,1775623853365,-151.190849,0.000251,2]
[420027215,1775623853375,-151.0,0.000251,2]
[420027216,1775623853384,-151.0,0.000251,2]
[420027217,1775623853394,-151.0,0.000251,2]
[420027218,1775623853404,-152.652172,0.000251,2]
[420027219,1775623853414,-291.394239,0.000251,2]
[420027220,1775623853424,-153.101342,0.000251,2]
[420027221,1775623853441,-151.0,0.000251,2]
[420027222,1775623853456,-680.691086,0.000251,2]
[420027223,1775623853466,-680.691086,0.000251,2]
[420027224,1775623853477,-151.0,0.000251,2]
[420027225,1775623853487,-680.691086,0.000251,2]
[420027226,1775623853497,-1436.269995,0.000251,2]
[420027227,1775623853506,-151.0,0.000251,2]
[420027228,1775623853516,-680.691086,0.000251,2]
[420027229,1775623853526,-1436.269995,0.000251,2]
[420027230,1775623853536,-1436.269995,0.000251,2]
[420027231,1775623853546,-1436.269995,0.000251,2]
[420027232,1775623853557,-153.180645,0.000251,2]
[420027233,1775623853567,-153.180645,0.000251,2]
[420027234,1775623853577,-153.180645,0.000251,2]
[420027235,1775623853587,-153.180645,0.000251,2]
[420027236,1775623853597,-153.242235,0.000251,2]
[420027237,1775623853606,-153.242235,0.000251,2]
[420027238,1775623853615,-153.242235,0.000251,2]
[420027239,1775623853625,-153.242235,0.000251,2]
[420027240,1775623853636,-151.0,0.000251,2]
[420027241,1775623853646,-151.0,0.000251,2]
[420027242,1775623853655,-194.131314,0.000251,2]
[420027243,1775623853665,-194.131314,0.000251,2]
[420027244,1775623853675,-194.131314,0.000251,2]
[420027245,1775623853684,-151.0,0.000251,2]
[420027246,1775623853694,-194.131314,0.000251,2]
[420027247,1775623853703,-151.0,0.000251,2]
[420027248,1775623853713,-333.804281,0.000251,2]
[420027249,1775623853724,-333.804281,0.000251,2]
[420027250,1775623853733,-151.0,0.000251,2]
[420027251,1775623853743,-333.804281,0.000251,2]
[420027252,1775623853753,-151.0,0.000251,2]
[420027253,1775623853763,-333.804281,0.000251,2]
[420027254,1775623853773,-220.876532,0.000251,2]
[420027255,1775623853783,-151.0,0.000251,2]
[420027256,1775623853793,-151.0,0.000251,2]
[420027257,1775623853803,-151.0,0.000251,2]
[420027258,1775623853812,-151.0,0.000251,2]
[420027259,1775623853822,-151.0,0.000251,2]
[420027260,1775623853832,-151.0,0.000251,2]
[420027261,1775623853841,-151.0,0.000251,2]
[420027262,1775623853851,-151.0,0.000251,2]
[420027263,1775623853861,-500.0,0.00025288,2]
[420027264,1775623853871,-1000000.0,0.000253,2]
[420027265,1775623853881,-69940.03157926,0.000253,2]
[420027266,1775623853890,-151.0,0.000253,2]
[420027267,1775623853900,-151.0,0.000253,2]
[420027268,1775623853910,-188.0,0.000253,2]
[420027269,1775623853920,-151.0,0.000253,2]
[420027270,1775623853929,-261.547627,0.000253,2]
[420027271,1775623853939,-151.0,0.000253,2]
[420027272,1775623853948,-151.0,0.000253,2]
[420027273,1775623853958,-319.450739,0.000253,2]
[420027274,1775623853968,-319.450739,0.000253,2]
[420027275,1775623853977,-319.450739,0.000253,2]
[420027276,1775623853987,-319.450739,0.000253,2]
[420027277,1775623853996,-151.0,0.000253,2]
[420027278,1775623854006,-1997.607165,0.000253,2]
[420027279,1775623854016,-1997.607165,0.000253,2]
[420027280,1775623854027,-1997.607165,0.000253,2]
[420027281,1775623854036,-1997.607165,0.000253,2]
[420027282,1775623854046,-175.533937,0.000253,2]
[420027283,1775623854056,-175.533937,0.000253,2]
[420027284,1775623854066,-151.0,0.000253,2]
[420027285,1775623854075,-175.533937,0.000253,2]
[420027286,1775623854084,-151.0,0.000253,2]
[420027287,1775623854094,-151.0,0.000253,2]
[420027288,1775623854103,-175.533937,0.000253,2]
[420027289,1775623854113,-151.0,0.000253,2]
[420027290,1775623854122,-151.0,0.000253,2]
[420027291,1775623854132,-151.0,0.000253,2]
[420027292,1775623854142,-151.0,0.000253,2]
[420027293,1775623854152,-151.0,0.000253,2]
[420027294,1775623854162,-151.0,0.000253,2]
[420027295,1775623854172,-245.185845,0.000253,2]
[420027296,1775623854182,-1783.253125,0.000253,2]
[420027297,1775623854191,-1783.253125,0.000253,2]
[420027298,1775623854200,-1783.253125,0.000253,2]
[420027299,1775623854210,-1783.253125,0.000253,2]
[420027300,1775623854221,-151.0,0.000253,2]
[420027301,1775623854230,-151.0,0.000253,2]
[420027302,1775623854240,-151.0,0.000253,2]
[420027303,1775623854250,-323.380748,0.000253,2]
[420027304,1775623854260,-323.380748,0.000253,2]
[420027305,1775623854269,-323.380748,0.000253,2]
[420027306,1775623854279,-257.70676,0.000253,2]
[420027307,1775623854289,-323.380748,0.000253,2]
[420027308,1775623854299,-151.0,0.000253,2]
[420027309,1775623854308,-257.70676,0.000253,2]
[420027310,1775623854318,-151.0,0.000253,2]
[420027311,1775623854328,-257.70676,0.000253,2]
[420027312,1775623854338,-151.0,0.000253,2]
[420027313,1775623854347,-151.0,0.000253,2]
[420027314,1775623854356,-257.70676,0.000253,2]
[420027315,1775623854366,-151.0,0.000253,2]
[420027316,1775623854375,-151.0,0.000253,2]
[420027317,1775623854385,-2500.0,0.00025427,2]
[420027318,1775623854394,-1346.46562521,0.00025427,2]
[420027319,1775623854404,-500.0,0.00025473,2]
[420027320,1775623854415,-1100.0,0.00025482,7]
[420027321,1775623854425,-2800.0,0.00025482,7]
[420027322,1775623854435,-1000000.0,0.000255,2]
[420027323,1775623854446,-158.910746,0.000255,2]
[420027324,1775623854456,-571.1081,0.000255,2]
[420027325,1775623854466,-151.0,0.000255,2]
[420027326,1775623854476,-151.0,0.000255,2]
[420027327,1775623854490,-151.0,0.000255,2]
[420027328,1775623854499,-151.0,0.000255,2]
[420027329,1775623854509,-151.0,0.000255,2]
[420027330,1775623854519,-151.0,0.000255,2]
[420027331,1775623854528,-151.0,0.000255,2]
[420027332,1775623854538,-151.0,0.000255,2]
[420027333,1775623854549,-208.433601,0.000255,2]
[420027334,1775623854558,-241.925939,0.000255,2]
[420027335,1775623854567,-151.0,0.000255,2]
[420027336,1775623854577,-263.680738,0.000255,2]
[420027337,1775623854586,-151.0,0.000255,2]
[420027338,1775623854596,-680.691086,0.000255,2]
[420027339,1775623854606,-680.691086,0.000255,2]
[420027340,1775623854616,-151.0,0.000255,2]
[420027341,1775623854625,-680.691086,0.000255,2]
[420027342,1775623854635,-1436.269995,0.000255,2]
[420027343,1775623854645,-680.691086,0.000255,2]
[420027344,1775623854655,-1436.269995,0.000255,2]
[420027345,1775623854664,-1436.269995,0.000255,2]
[420027346,1775623854674,-1436.269995,0.000255,2]
[420027347,1775623854684,-153.180645,0.000255,2]
[420027348,1775623854695,-153.180645,0.000255,2]
[420027349,1775623854704,-153.180645,0.000255,2]
[420027350,1775623854715,-153.180645,0.000255,2]
[420027351,1775623854724,-153.242235,0.000255,2]
[420027352,1775623854734,-153.242235,0.000255,2]
[420027353,1775623854744,-153.242235,0.000255,2]
[420027354,1775623854754,-153.242235,0.000255,2]
[420027355,1775623854763,-151.0,0.000255,2]
[420027356,1775623854773,-194.131314,0.000255,2]
[420027357,1775623854783,-194.131314,0.000255,2]
[420027358,1775623854793,-194.131314,0.000255,2]
[420027359,1775623854802,-151.0,0.000255,2]
[420027360,1775623854812,-194.131314,0.000255,2]
[420027361,1775623854821,-151.0,0.000255,2]
[420027362,1775623854831,-333.804281,0.000255,2]
[420027363,1775623854841,-333.804281,0.000255,2]
[420027364,1775623854851,-151.0,0.000255,2]
[420027365,1775623854861,-333.804281,0.000255,2]
[420027366,1775623854871,-151.0,0.000255,2]
[420027367,1775623854880,-333.804281,0.000255,2]
[420027368,1775623854890,-206.144742,0.000255,2]
[420027369,1775623854899,-151.0,0.000255,2]
[420027370,1775623854908,-151.0,0.000255,2]
[420027371,1775623854919,-171.986752,0.000255,3]
[420027372,1775623854930,-151.0,0.000255,2]
[420027373,1775623854939,-151.0,0.000255,2]
[420027374,1775623854949,-151.0,0.000255,2]
[420027375,1775623854959,-151.0,0.000255,2]
[420027376,1775623854969,-186.086111,0.000255,2]
[420027377,1775623854979,-622.0,0.00025598,2]
[420027378,1775623854989,-1347.0,0.00025598,2]
[420027379,1775623854999,-1046.0,0.00025598,2]
[420027380,1775623855009,-1264.0,0.00025598,2]
[420027381,1775623855018,-415.0,0.00025598,2]
[420027382,1775623855029,-470.29281914,0.00025801,2]
[420027383,1775623855038,-150.0,0.0002589,2]
[420027384,1775623855048,-200.0,0.000259,9]
[420027385,1775623855058,-3000.0,0.00025975,2]
[420027386,1775623855068,-152.0,0.00025988,7]
[420027387,1775623855078,-599924.14966253,0.00026,2]
[420027388,1775623855923,-4912.41113677,0.00026,2]
[420027389,1775623855952,-151.0,0.000251,2]
[420027390,1775623855961,-430.1401268,0.00026,2]
[420027391,1775623856051,-246.25716228,0.000119,2]
[420027392,1775623856061,-985.24465103,0.00013699,2]
[420027393,1775623856071,-500.0,0.00020988,2]
[420027394,1775623856081,-1482.0,0.00022,2]
[420027395,1775623856091,-151.0,0.000255,2]
[420027396,1775623856100,-394733.2990739,0.00026,2]
[420027397,1775623856110,-1000000.0,0.00026,2]
[420027398,1775623856120,-160.0,0.00026,7]
[420027399,1775623856130,-163.620579,0.00026,2]
[420027400,1775623856140,-151.0,0.00026,2]
[420027401,1775623856150,-151.0,0.00026,2]
[420027402,1775623856161,-151.0,0.00026,2]
[420027403,1775623856171,-151.0,0.00026,2]
[420027404,1775623856181,-151.0,0.00026,2]
[420027405,1775623856190,-207.018641,0.00026,2]
[420027406,1775623856200,-151.0,0.00026,2]
[420027407,1775623856209,-151.0,0.00026,2]
[420027408,1775623856219,-151.0,0.00026,2]
[420027409,1775623856228,-701.0,0.00026,2]
[420027410,1775623856237,-151.0,0.00026,2]
[420027411,1775623856247,-162.0,0.00026,2]
[420027412,1775623856257,-151.0,0.00026,2]
[420027413,1775623856267,-1220.0,0.00026,2]
[420027414,1775623856275,-151.0,0.00026,2]
[420027415,1775623856284,-5456.0,0.00026,2]
[420027416,1775623856294,-151.0,0.00026,2]
[420027417,1775623856303,-151.0,0.00026,2]
[420027418,1775623856312,-319.450739,0.00026,2]
[420027419,1775623856321,-319.450739,0.00026,2]
[420027420,1775623856331,-319.450739,0.00026,2]
[420027421,1775623856341,-319.450739,0.00026,2]
[420027422,1775623856351,-680.691086,0.00026,2]
[420027423,1775623856360,-680.691086,0.00026,2]
[420027424,1775623856370,-151.0,0.00026,2]
[420027425,1775623856379,-680.691086,0.00026,2]
[420027426,1775623856389,-1436.269995,0.00026,2]
[420027427,1775623856399,-3464.0,0.00026,2]
[420027428,1775623856408,-680.691077,0.00026,2]
[420027429,1775623856418,-1436.269995,0.00026,2]
[420027430,1775623856427,-1436.269995,0.00026,2]
[420027431,1775623856437,-1436.269988,0.00026,2]
[420027432,1775623856446,-153.180645,0.00026,2]
[420027433,1775623856455,-153.180645,0.00026,2]
[420027434,1775623856465,-153.180645,0.00026,2]
[420027435,1775623856475,-153.180648,0.00026,2]
[420027436,1775623856485,-153.242235,0.00026,2]
[420027437,1775623856495,-153.242235,0.00026,2]
[420027438,1775623856505,-153.242235,0.00026,2]
[420027439,1775623856515,-153.242244,0.00026,2]
[420027440,1775623856527,-1355.0,0.00026,2]
[420027441,1775623856537,-1997.607165,0.00026,2]
[420027442,1775623856547,-1997.607165,0.00026,2]
[420027443,1775623856991,-1997.607165,0.00026,2]
[420027444,1775623857026,-1997.607169,0.00026,2]
[420027445,1775623857036,-175.533937,0.00026,2]
[420027446,1775623857045,-175.533937,0.00026,2]
[420027447,1775623857055,-151.0,0.00026,2]
[420027448,1775623857064,-175.533937,0.00026,2]
[420027449,1775623857074,-151.0,0.00026,2]
[420027450,1775623857083,-151.0,0.00026,2]
[420027451,1775623857092,-175.533939,0.00026,2]
[420027452,1775623857102,-151.0,0.00026,2]
[420027453,1775623857112,-151.0,0.00026,2]
[420027454,1775623857122,-151.0,0.00026,2]
[420027455,1775623857131,-151.0,0.00026,2]
[420027456,1775623857140,-151.0,0.00026,2]
[420027457,1775623857151,-297.952541,0.00026,2]
[420027458,1775623857160,-977.0,0.00026,2]
[420027459,1775623857171,-1783.253125,0.00026,2]
[420027460,1775623857181,-1783.253125,0.00026,2]
[420027461,1775623857191,-1783.253125,0.00026,2]
[420027462,1775623857200,-1783.253128,0.00026,2]
[420027463,1775623857210,-151.0,0.00026,2]
[420027464,1775623857220,-151.0,0.00026,2]
[420027465,1775623857230,-151.0,0.00026,2]
[420027466,1775623857239,-323.380748,0.00026,2]
[420027467,1775623857249,-323.380748,0.00026,2]
[420027468,1775623857259,-323.380748,0.00026,2]
[420027469,1775623857269,-257.70676,0.00026,2]
[420027470,1775623857279,-323.38075,0.00026,2]
[420027471,1775623857288,-151.0,0.00026,2]
[420027472,1775623857298,-257.70676,0.00026,2]
[420027473,1775623857307,-151.0,0.00026,2]
[420027474,1775623857317,-257.70676,0.00026,2]
[420027475,1775623857328,-151.0,0.00026,2]
[420027476,1775623857338,-293.61183,0.00026,2]
[420027477,1775623857348,-257.70676,0.00026,2]
[420027478,1775623857359,-151.0,0.00026,2]